[Event "Titled Tuesday Blitz November 07 Late 2023"]
[White "Santos Flores, Alberto"]
[Black "Annaberdiyev, Meylis"]
[WhiteFideId "3601234"]
[BlackFideId "14000563"]
[WhiteElo "2544"]
[BlackElo "2699"]
[Result "1-0"]
[Round "7"]
[TimeControl "180+1"]
[Date "2023.11.07"]
[WhiteClock "0:00:16"]
[BlackClock "0:00:00"]
[Board "37"]

1. e4 {[%clk 0:03:00]}  c5 {[%clk 0:02:57]} 2. Nf3 {[%clk 0:03:00]}  Nc6 {[%clk 0:02:58]} 3. Nc3 {[%clk 0:03:00]}  e6 {[%clk 0:02:51]} 4. d4 {[%clk 0:02:59]}  cxd4 {[%clk 0:02:51]} 5. Nxd4 {[%clk 0:03:00]}  Qc7 {[%clk 0:02:52]} 6. g3 {[%clk 0:03:00]}  a6 {[%clk 0:02:51]} 7. Bg2 {[%clk 0:03:00]}  Nf6 {[%clk 0:02:52]} 8. O-O {[%clk 0:02:58]}  h5 {[%clk 0:02:53]} 9. Re1 {[%clk 0:02:58]}  Nxd4 {[%clk 0:02:52]} 10. Qxd4 {[%clk 0:02:58]}  Bc5 {[%clk 0:02:52]} 11. Qd3 {[%clk 0:02:54]}  Ng4 {[%clk 0:02:51]} 12. Nd1 {[%clk 0:02:51]}  h4 {[%clk 0:02:38]} 13. Ne3 {[%clk 0:02:46]}  Ne5 {[%clk 0:02:36]} 14. Qe2 {[%clk 0:02:42]}  d6 {[%clk 0:02:30]} 15. c4 {[%clk 0:02:23]}  Bd7 {[%clk 0:02:08]} 16. b3 {[%clk 0:02:15]}  Bc6 {[%clk 0:01:54]} 17. Bb2 {[%clk 0:02:12]}  O-O-O {[%clk 0:01:50]} 18. a3 {[%clk 0:02:10]}  hxg3 {[%clk 0:01:46]} 19. hxg3 {[%clk 0:02:09]}  Rh6 {[%clk 0:01:43]} 20. b4 {[%clk 0:02:09]}  Bxe3 {[%clk 0:01:35]} 21. Qxe3 {[%clk 0:02:09]}  Nxc4 {[%clk 0:01:29]} 22. Qc3 {[%clk 0:02:04]}  Nxb2 {[%clk 0:01:27]} 23. Qxg7 {[%clk 0:01:54]}  Rdh8 {[%clk 0:01:22]} 24. Qxb2 {[%clk 0:01:54]}  f5 {[%clk 0:01:10]} 25. a4 {[%clk 0:01:49]}  Qh7 {[%clk 0:01:01]} 26. Kf1 {[%clk 0:01:33]}  Bxe4 {[%clk 0:00:49]} 27. Bxe4 {[%clk 0:01:28]}  fxe4 {[%clk 0:00:49]} 28. Qd4 {[%clk 0:01:21]}  Qf5 {[%clk 0:00:39]} 29. Ke2 {[%clk 0:00:37]}  d5 {[%clk 0:00:26]} 30. Rac1+ {[%clk 0:00:34]}  Kb8 {[%clk 0:00:26]} 31. b5 {[%clk 0:00:31]}  Rh2 {[%clk 0:00:21]} 32. Rf1 {[%clk 0:00:30]}  Qf3+ {[%clk 0:00:17]} 33. Kd2 {[%clk 0:00:31]}  Qxg3 {[%clk 0:00:06]} 34. Qxh8+ {[%clk 0:00:27]}  Ka7 {[%clk 0:00:01]} 35. b6+ {[%clk 0:00:23]}  Kxb6 {[%clk 0:00:01]} 36. Qd4+ {[%clk 0:00:23]}  Ka5 {[%clk 0:00:01]} 37. Qc5+ {[%clk 0:00:20]}  b5 {[%clk 0:00:02]} 38. Qc7+ {[%clk 0:00:18]}  Qxc7 {[%clk 0:00:02]} 39. Rxc7 {[%clk 0:00:18]}  d4 {[%clk 0:00:03]} 40. Ke2 {[%clk 0:00:17]}  Kxa4 {[%clk 0:00:00]} 41. Re7 {[%clk 0:00:16]} 1-0


[Site "https://www.chess.com"]

[Event "Titled Tuesday Blitz November 07 Late 2023"]
[White "Priasmoro, Novendra"]
[Black "Tikhonov, Viacheslav"]
[WhiteFideId "7105029"]
[BlackFideId "44196407"]
[WhiteElo "2694"]
[BlackElo "2544"]
[Result "0-1"]
[Round "7"]
[TimeControl "180+1"]
[Date "2023.11.07"]
[WhiteClock "0:00:00"]
[BlackClock "0:00:30"]
[Board "38"]

1. Nf3 {[%clk 0:03:00]}  d5 {[%clk 0:02:59]} 2. g3 {[%clk 0:03:00]}  Nf6 {[%clk 0:02:59]} 3. Bg2 {[%clk 0:03:01]}  g6 {[%clk 0:03:00]} 4. O-O {[%clk 0:03:01]}  Bg7 {[%clk 0:03:00]} 5. d4 {[%clk 0:03:01]}  O-O {[%clk 0:03:00]} 6. c4 {[%clk 0:03:02]}  c6 {[%clk 0:02:59]} 7. cxd5 {[%clk 0:03:02]}  cxd5 {[%clk 0:02:59]} 8. Nc3 {[%clk 0:03:03]}  Nc6 {[%clk 0:02:59]} 9. Ne5 {[%clk 0:03:03]}  e6 {[%clk 0:02:59]} 10. Nxc6 {[%clk 0:03:04]}  bxc6 {[%clk 0:03:00]} 11. Na4 {[%clk 0:03:05]}  Rb8 {[%clk 0:02:59]} 12. b3 {[%clk 0:03:06]}  Re8 {[%clk 0:02:58]} 13. Bb2 {[%clk 0:03:05]}  Ba6 {[%clk 0:02:55]} 14. Rc1 {[%clk 0:03:06]}  Bb5 {[%clk 0:02:55]} 15. Nc5 {[%clk 0:03:06]}  Nd7 {[%clk 0:02:50]} 16. a4 {[%clk 0:03:01]}  Nxc5 {[%clk 0:02:49]} 17. Rxc5 {[%clk 0:03:02]}  Bxa4 {[%clk 0:02:49]} 18. bxa4 {[%clk 0:02:48]}  Rxb2 {[%clk 0:02:48]} 19. Rxc6 {[%clk 0:02:49]}  Qa5 {[%clk 0:02:47]} 20. e3 {[%clk 0:02:37]}  Rb4 {[%clk 0:02:46]} 21. Qf3 {[%clk 0:02:33]}  Rxa4 {[%clk 0:02:35]} 22. Qf4 {[%clk 0:02:31]}  Ra1 {[%clk 0:02:31]} 23. Rc7 {[%clk 0:02:29]}  Rf8 {[%clk 0:02:30]} 24. Qd6 {[%clk 0:02:25]}  Rxf1+ {[%clk 0:02:29]} 25. Bxf1 {[%clk 0:02:26]}  Qb6 {[%clk 0:02:17]} 26. Qd7 {[%clk 0:02:22]}  a5 {[%clk 0:02:12]} 27. Rb7 {[%clk 0:02:22]}  Qd8 {[%clk 0:02:12]} 28. Qb5 {[%clk 0:02:13]}  h5 {[%clk 0:02:12]} 29. h4 {[%clk 0:02:11]}  Qa8 {[%clk 0:02:09]} 30. Qb6 {[%clk 0:02:06]}  Qd8 {[%clk 0:02:05]} 31. Qa6 {[%clk 0:02:03]}  g5 {[%clk 0:02:01]} 32. Qe2 {[%clk 0:01:41]}  g4 {[%clk 0:01:42]} 33. Qa6 {[%clk 0:01:39]}  Qc8 {[%clk 0:01:39]} 34. Qb6 {[%clk 0:01:26]}  Bf6 {[%clk 0:01:36]} 35. Ra7 {[%clk 0:01:16]}  Bd8 {[%clk 0:01:35]} 36. Qb5 {[%clk 0:01:13]}  Qc3 {[%clk 0:01:28]} 37. Ra8 {[%clk 0:01:12]}  Be7 {[%clk 0:01:26]} 38. Rxa5 {[%clk 0:01:12]}  Qb4 {[%clk 0:01:13]} 39. Qa6 {[%clk 0:01:09]}  Rb8 {[%clk 0:01:10]} 40. Ra2 {[%clk 0:01:07]}  Qe1 {[%clk 0:01:08]} 41. Re2 {[%clk 0:01:04]}  Qd1 {[%clk 0:01:06]} 42. Ra2 {[%clk 0:00:54]}  Rb1 {[%clk 0:01:04]} 43. Kg2 {[%clk 0:00:46]}  Qf3+ {[%clk 0:00:57]} 44. Kh2 {[%clk 0:00:46]}  Kg7 {[%clk 0:00:50]} 45. Rd2 {[%clk 0:00:37]}  Bd6 {[%clk 0:00:38]} 46. Bg2 {[%clk 0:00:33]}  Bxg3+ {[%clk 0:00:36]} 47. fxg3 {[%clk 0:00:30]}  Qxe3 {[%clk 0:00:37]} 48. Rf2 {[%clk 0:00:01]}  Qxf2 {[%clk 0:00:34]} 49. Qf1 {[%clk 0:00:00]}  Qxf1 {[%clk 0:00:30]} 0-1


[Site "https://www.chess.com"]

[Event "Titled Tuesday Blitz November 07 Late 2023"]
[White "Giroyan, Gary"]
[Black "Zirkelbach, Maj"]
[WhiteFideId "680281"]
[BlackFideId "14613395"]
[WhiteElo "2687"]
[BlackElo "2505"]
[Result "1-0"]
[Round "7"]
[TimeControl "180+1"]
[Date "2023.11.07"]
[WhiteClock "0:01:07"]
[BlackClock "0:00:19"]
[Board "42"]

1. d4 {[%clk 0:03:00]}  Nf6 {[%clk 0:03:00]} 2. c4 {[%clk 0:02:59]}  e6 {[%clk 0:03:00]} 3. Nf3 {[%clk 0:02:59]}  d5 {[%clk 0:02:59]} 4. g3 {[%clk 0:02:59]}  Bb4+ {[%clk 0:02:59]} 5. Bd2 {[%clk 0:02:58]}  Be7 {[%clk 0:02:59]} 6. Bg2 {[%clk 0:02:59]}  O-O {[%clk 0:02:59]} 7. O-O {[%clk 0:02:59]}  c6 {[%clk 0:02:59]} 8. Qc2 {[%clk 0:02:59]}  Nbd7 {[%clk 0:02:59]} 9. Rc1 {[%clk 0:02:58]}  b6 {[%clk 0:02:55]} 10. a4 {[%clk 0:02:58]}  Ba6 {[%clk 0:02:49]} 11. b3 {[%clk 0:02:57]}  Rc8 {[%clk 0:02:41]} 12. a5 {[%clk 0:02:57]}  b5 {[%clk 0:02:41]} 13. c5 {[%clk 0:02:47]}  Ne4 {[%clk 0:02:38]} 14. b4 {[%clk 0:02:43]}  Bf6 {[%clk 0:02:09]} 15. Bc3 {[%clk 0:02:43]}  Re8 {[%clk 0:02:07]} 16. Ne5 {[%clk 0:02:37]}  Nxc3 {[%clk 0:02:02]} 17. Qxc3 {[%clk 0:02:26]}  Nxe5 {[%clk 0:01:57]} 18. dxe5 {[%clk 0:02:26]}  d4 {[%clk 0:01:58]} 19. Qd3 {[%clk 0:02:22]}  Bxe5 {[%clk 0:01:58]} 20. Nd2 {[%clk 0:02:22]}  Rc7 {[%clk 0:01:41]} 21. f4 {[%clk 0:02:09]}  Bf6 {[%clk 0:01:38]} 22. Ne4 {[%clk 0:02:08]}  e5 {[%clk 0:01:35]} 23. Nd6 {[%clk 0:02:01]}  Ree7 {[%clk 0:01:23]} 24. f5 {[%clk 0:01:54]}  Red7 {[%clk 0:01:17]} 25. h4 {[%clk 0:01:50]}  Be7 {[%clk 0:01:14]} 26. Ne4 {[%clk 0:01:47]}  f6 {[%clk 0:01:14]} 27. g4 {[%clk 0:01:47]}  Kh8 {[%clk 0:01:13]} 28. Kf2 {[%clk 0:01:41]}  Bc8 {[%clk 0:01:13]} 29. Rh1 {[%clk 0:01:41]}  a6 {[%clk 0:01:14]} 30. Bf3 {[%clk 0:01:37]}  Bf8 {[%clk 0:01:12]} 31. Rag1 {[%clk 0:01:37]}  Rf7 {[%clk 0:01:11]} 32. Ke1 {[%clk 0:01:36]}  g6 {[%clk 0:00:59]} 33. Nf2 {[%clk 0:01:28]}  gxf5 {[%clk 0:00:59]} 34. gxf5 {[%clk 0:01:27]}  Rg7 {[%clk 0:00:58]} 35. Ng4 {[%clk 0:01:20]}  Be7 {[%clk 0:00:31]} 36. Nh6 {[%clk 0:01:18]}  Bf8 {[%clk 0:00:21]} 37. Ng4 {[%clk 0:01:14]}  Be7 {[%clk 0:00:21]} 38. Be4 {[%clk 0:01:12]}  Bd7 {[%clk 0:00:21]} 39. Nh6 {[%clk 0:01:10]}  Bf8 {[%clk 0:00:22]} 40. Rxg7 {[%clk 0:01:09]}  Bxg7 {[%clk 0:00:22]} 41. Nf7+ {[%clk 0:01:09]}  Kg8 {[%clk 0:00:23]} 42. Nxd8 {[%clk 0:01:10]}  Rc8 {[%clk 0:00:19]} 43. Qb3+ {[%clk 0:01:07]} 1-0


[Site "https://www.chess.com"]

[Event "Titled Tuesday Blitz November 07 Late 2023"]
[White "Rozman, Levy"]
[Black "Kovacsy, Barnabas"]
[WhiteFideId "2039877"]
[BlackFideId "769290"]
[WhiteElo "2686"]
[BlackElo "2491"]
[Result "0-1"]
[Round "7"]
[TimeControl "180+1"]
[Date "2023.11.07"]
[WhiteClock "0:00:04"]
[BlackClock "0:00:21"]
[Board "43"]

1. e4 {[%clk 0:03:00]}  c5 {[%clk 0:02:58]} 2. a3 {[%clk 0:02:59]}  e6 {[%clk 0:02:46]} 3. b4 {[%clk 0:02:59]}  cxb4 {[%clk 0:02:46]} 4. axb4 {[%clk 0:02:59]}  Bxb4 {[%clk 0:02:44]} 5. c3 {[%clk 0:03:00]}  Be7 {[%clk 0:02:44]} 6. d4 {[%clk 0:02:59]}  d5 {[%clk 0:02:42]} 7. e5 {[%clk 0:02:57]}  Nc6 {[%clk 0:02:42]} 8. Qg4 {[%clk 0:02:57]}  g6 {[%clk 0:02:38]} 9. h4 {[%clk 0:02:56]}  h5 {[%clk 0:02:37]} 10. Qg3 {[%clk 0:02:53]}  Nh6 {[%clk 0:02:33]} 11. Nf3 {[%clk 0:02:47]}  Nf5 {[%clk 0:02:29]} 12. Qf4 {[%clk 0:02:47]}  Bd7 {[%clk 0:02:20]} 13. Ba3 {[%clk 0:02:36]}  Qb6 {[%clk 0:01:43]} 14. Bd3 {[%clk 0:02:31]}  Rc8 {[%clk 0:01:28]} 15. O-O {[%clk 0:02:30]}  Bxa3 {[%clk 0:01:13]} 16. Nxa3 {[%clk 0:02:28]}  a6 {[%clk 0:01:09]} 17. Rab1 {[%clk 0:02:08]}  Qc7 {[%clk 0:01:03]} 18. Rfc1 {[%clk 0:02:04]}  b5 {[%clk 0:01:02]} 19. Bxf5 {[%clk 0:01:55]}  exf5 {[%clk 0:00:59]} 20. Rxb5 {[%clk 0:01:51]}  axb5 {[%clk 0:00:51]} 21. Nxb5 {[%clk 0:01:52]}  Qd8 {[%clk 0:00:50]} 22. Nd6+ {[%clk 0:01:51]}  Kf8 {[%clk 0:00:50]} 23. Ng5 {[%clk 0:01:47]}  Be6 {[%clk 0:00:46]} 24. Ra1 {[%clk 0:01:28]}  Ra8 {[%clk 0:00:39]} 25. Rxa8 {[%clk 0:01:16]}  Qxa8 {[%clk 0:00:40]} 26. Nxe6+ {[%clk 0:01:16]}  fxe6 {[%clk 0:00:40]} 27. Qg5 {[%clk 0:01:16]}  Qd8 {[%clk 0:00:39]} 28. Qxg6 {[%clk 0:01:16]}  Qe7 {[%clk 0:00:36]} 29. g3 {[%clk 0:01:13]}  Rg8 {[%clk 0:00:36]} 30. Qh6+ {[%clk 0:01:12]}  Rg7 {[%clk 0:00:30]} 31. Qh8+ {[%clk 0:01:12]}  Rg8 {[%clk 0:00:30]} 32. Qh6+ {[%clk 0:01:12]}  Rg7 {[%clk 0:00:30]} 33. Qxh5 {[%clk 0:01:12]}  f4 {[%clk 0:00:29]} 34. Qh6 {[%clk 0:01:10]}  fxg3 {[%clk 0:00:28]} 35. fxg3 {[%clk 0:01:00]}  Kg8 {[%clk 0:00:27]} 36. Kg2 {[%clk 0:00:54]}  Nd8 {[%clk 0:00:27]} 37. c4 {[%clk 0:00:51]}  Nf7 {[%clk 0:00:24]} 38. Nxf7 {[%clk 0:00:41]}  Qxf7 {[%clk 0:00:24]} 39. cxd5 {[%clk 0:00:38]}  exd5 {[%clk 0:00:25]} 40. e6 {[%clk 0:00:39]}  Qf5 {[%clk 0:00:23]} 41. h5 {[%clk 0:00:31]}  Qe4+ {[%clk 0:00:21]} 42. Kh2 {[%clk 0:00:31]}  Qe2+ {[%clk 0:00:21]} 43. Kh1 {[%clk 0:00:04]}  Qe1+ {[%clk 0:00:21]} 0-1


[Site "https://www.chess.com"]

[Event "Titled Tuesday Blitz November 07 Late 2023"]
[White "Prithu Gupta"]
[Black "Amburgy, Ryan"]
[WhiteFideId "46618546"]
[BlackFideId "30924820"]
[WhiteElo "2400"]
[BlackElo "2644"]
[Result "1-0"]
[Round "7"]
[TimeControl "180+1"]
[Date "2023.11.07"]
[WhiteClock "0:00:06"]
[BlackClock "0:00:09"]
[Board "44"]

1. d4 {[%clk 0:03:00]}  Nf6 {[%clk 0:02:59]} 2. c4 {[%clk 0:03:00]}  e6 {[%clk 0:02:59]} 3. Nf3 {[%clk 0:03:00]}  d5 {[%clk 0:02:59]} 4. Bg5 {[%clk 0:03:00]}  h6 {[%clk 0:02:45]} 5. Bxf6 {[%clk 0:02:56]}  Qxf6 {[%clk 0:02:46]} 6. Nc3 {[%clk 0:02:55]}  Bb4 {[%clk 0:02:46]} 7. e3 {[%clk 0:02:53]}  O-O {[%clk 0:02:45]} 8. Rc1 {[%clk 0:02:51]}  dxc4 {[%clk 0:02:45]} 9. Bxc4 {[%clk 0:02:51]}  c5 {[%clk 0:02:45]} 10. O-O {[%clk 0:02:51]}  cxd4 {[%clk 0:02:46]} 11. exd4 {[%clk 0:02:51]}  Rd8 {[%clk 0:02:42]} 12. Qe2 {[%clk 0:02:50]}  Nc6 {[%clk 0:02:36]} 13. Ne4 {[%clk 0:02:48]}  Qe7 {[%clk 0:02:34]} 14. Qe3 {[%clk 0:02:39]}  Bd7 {[%clk 0:02:12]} 15. Rfd1 {[%clk 0:02:13]}  Be8 {[%clk 0:02:09]} 16. a3 {[%clk 0:02:12]}  Bd6 {[%clk 0:02:08]} 17. d5 {[%clk 0:02:02]}  exd5 {[%clk 0:02:07]} 18. Bxd5 {[%clk 0:02:02]}  Bc7 {[%clk 0:01:36]} 19. Qc5 {[%clk 0:01:40]}  Qxc5 {[%clk 0:01:19]} 20. Nxc5 {[%clk 0:01:38]}  Rab8 {[%clk 0:01:20]} 21. Be4 {[%clk 0:01:31]}  Bd6 {[%clk 0:01:11]} 22. Kf1 {[%clk 0:00:24]}  Bxc5 {[%clk 0:01:03]} 23. Rxd8 {[%clk 0:00:24]}  Nxd8 {[%clk 0:01:04]} 24. Rxc5 {[%clk 0:00:23]}  Bc6 {[%clk 0:01:03]} 25. Bxc6 {[%clk 0:00:20]}  Nxc6 {[%clk 0:01:04]} 26. b4 {[%clk 0:00:20]}  a6 {[%clk 0:00:51]} 27. Ke2 {[%clk 0:00:15]}  Kf8 {[%clk 0:00:50]} 28. Kd3 {[%clk 0:00:10]}  Ke7 {[%clk 0:00:49]} 29. Kc3 {[%clk 0:00:07]}  g6 {[%clk 0:00:46]} 30. a4 {[%clk 0:00:07]}  Kd6 {[%clk 0:00:39]} 31. Kb3 {[%clk 0:00:06]}  Re8 {[%clk 0:00:36]} 32. Rc2 {[%clk 0:00:06]}  Re4 {[%clk 0:00:34]} 33. Rd2+ {[%clk 0:00:05]}  Kc7 {[%clk 0:00:34]} 34. b5 {[%clk 0:00:02]}  Na5+ {[%clk 0:00:34]} 35. Kc3 {[%clk 0:00:02]}  Rc4+ {[%clk 0:00:29]} 36. Kd3 {[%clk 0:00:03]}  Rxa4 {[%clk 0:00:29]} 37. bxa6 {[%clk 0:00:02]}  bxa6 {[%clk 0:00:30]} 38. Rc2+ {[%clk 0:00:02]}  Kb7 {[%clk 0:00:26]} 39. Ne5 {[%clk 0:00:02]}  Rf4 {[%clk 0:00:24]} 40. Ke3 {[%clk 0:00:03]}  Rf5 {[%clk 0:00:24]} 41. f4 {[%clk 0:00:03]}  Rf6 {[%clk 0:00:22]} 42. g4 {[%clk 0:00:03]}  Re6 {[%clk 0:00:21]} 43. Kf3 {[%clk 0:00:03]}  Nc6 {[%clk 0:00:21]} 44. Rb2+ {[%clk 0:00:03]}  Kc7 {[%clk 0:00:21]} 45. Rc2 {[%clk 0:00:04]}  f6 {[%clk 0:00:20]} 46. Nxg6 {[%clk 0:00:04]}  Kd6 {[%clk 0:00:20]} 47. Rd2+ {[%clk 0:00:04]}  Kc5 {[%clk 0:00:20]} 48. f5 {[%clk 0:00:04]}  Re8 {[%clk 0:00:19]} 49. Nf4 {[%clk 0:00:04]}  Nd4+ {[%clk 0:00:19]} 50. Kg3 {[%clk 0:00:02]}  a5 {[%clk 0:00:17]} 51. Kh4 {[%clk 0:00:02]}  Re3 {[%clk 0:00:17]} 52. Kh5 {[%clk 0:00:02]}  a4 {[%clk 0:00:15]} 53. Kxh6 {[%clk 0:00:02]}  a3 {[%clk 0:00:16]} 54. Kg7 {[%clk 0:00:02]}  Rf3 {[%clk 0:00:13]} 55. Ne6+ {[%clk 0:00:02]}  Nxe6+ {[%clk 0:00:12]} 56. fxe6 {[%clk 0:00:03]}  f5 {[%clk 0:00:08]} 57. g5 {[%clk 0:00:03]}  f4 {[%clk 0:00:08]} 58. Kf7 {[%clk 0:00:03]}  Re3 {[%clk 0:00:08]} 59. e7 {[%clk 0:00:04]}  f3 {[%clk 0:00:09]} 60. e8=Q {[%clk 0:00:04]}  Rxe8 {[%clk 0:00:10]} 61. Kxe8 {[%clk 0:00:04]}  Kc4 {[%clk 0:00:10]} 62. g6 {[%clk 0:00:04]}  Kc3 {[%clk 0:00:10]} 63. Rf2 {[%clk 0:00:05]}  Kb4 {[%clk 0:00:10]} 64. Rxf3 {[%clk 0:00:05]}  a2 {[%clk 0:00:09]} 65. Rf1 {[%clk 0:00:06]} 1-0


[Site "https://www.chess.com"]

[Event "Titled Tuesday Blitz November 07 Late 2023"]
[White "FuenfgegenWilly"]
[Black "Holt, Conrad"]
[BlackFideId "2034387"]
[WhiteElo "2445"]
[BlackElo "2795"]
[Result "1/2-1/2"]
[Round "7"]
[TimeControl "180+1"]
[Date "2023.11.07"]
[WhiteClock "0:00:07"]
[BlackClock "0:00:10"]
[Board "45"]

1. e4 {[%clk 0:02:54]}  e6 {[%clk 0:03:00]} 2. d4 {[%clk 0:02:53]}  d5 {[%clk 0:03:00]} 3. exd5 {[%clk 0:02:54]}  exd5 {[%clk 0:03:00]} 4. Nf3 {[%clk 0:02:55]}  Bd6 {[%clk 0:03:00]} 5. Bd3 {[%clk 0:02:55]}  Nc6 {[%clk 0:03:00]} 6. O-O {[%clk 0:02:48]}  Bg4 {[%clk 0:02:59]} 7. Re1+ {[%clk 0:02:45]}  Nge7 {[%clk 0:02:58]} 8. c3 {[%clk 0:02:43]}  Qd7 {[%clk 0:02:58]} 9. Nbd2 {[%clk 0:02:33]}  f6 {[%clk 0:02:58]} 10. b4 {[%clk 0:02:30]}  O-O {[%clk 0:02:58]} 11. b5 {[%clk 0:02:21]}  Na5 {[%clk 0:02:54]} 12. Qa4 {[%clk 0:02:10]}  b6 {[%clk 0:02:50]} 13. Ba3 {[%clk 0:02:10]}  a6 {[%clk 0:02:33]} 14. Bxd6 {[%clk 0:02:04]}  Qxd6 {[%clk 0:01:40]} 15. bxa6 {[%clk 0:01:58]}  Nec6 {[%clk 0:01:31]} 16. Re3 {[%clk 0:01:39]}  g6 {[%clk 0:01:15]} 17. Nb3 {[%clk 0:01:33]}  Bd7 {[%clk 0:01:03]} 18. Nxa5 {[%clk 0:01:26]}  Nxa5 {[%clk 0:01:03]} 19. Qc2 {[%clk 0:01:16]}  Kg7 {[%clk 0:01:00]} 20. Rae1 {[%clk 0:01:15]}  b5 {[%clk 0:00:56]} 21. Nh4 {[%clk 0:01:01]}  f5 {[%clk 0:00:31]} 22. Re7+ {[%clk 0:00:46]}  Rf7 {[%clk 0:00:30]} 23. Rxf7+ {[%clk 0:00:47]}  Kxf7 {[%clk 0:00:30]} 24. Qd2 {[%clk 0:00:47]}  Rxa6 {[%clk 0:00:19]} 25. Qh6 {[%clk 0:00:36]}  Kg8 {[%clk 0:00:19]} 26. Qg5 {[%clk 0:00:24]}  Qf6 {[%clk 0:00:16]} 27. Qxf6 {[%clk 0:00:21]}  Rxf6 {[%clk 0:00:16]} 28. Nf3 {[%clk 0:00:22]}  Kf8 {[%clk 0:00:13]} 29. Ne5 {[%clk 0:00:22]}  Be8 {[%clk 0:00:13]} 30. Rb1 {[%clk 0:00:21]}  Rb6 {[%clk 0:00:13]} 31. f4 {[%clk 0:00:20]}  Nb7 {[%clk 0:00:13]} 32. Kf2 {[%clk 0:00:18]}  Nd6 {[%clk 0:00:13]} 33. g3 {[%clk 0:00:18]}  Ra6 {[%clk 0:00:14]} 34. Rb2 {[%clk 0:00:17]}  Ra3 {[%clk 0:00:14]} 35. Rc2 {[%clk 0:00:15]}  Ke7 {[%clk 0:00:14]} 36. Ke3 {[%clk 0:00:15]}  Ne4 {[%clk 0:00:14]} 37. Bxe4 {[%clk 0:00:16]}  fxe4 {[%clk 0:00:15]} 38. Kd2 {[%clk 0:00:14]}  Kd6 {[%clk 0:00:14]} 39. Rb2 {[%clk 0:00:14]}  c5 {[%clk 0:00:12]} 40. Kc2 {[%clk 0:00:07]}  cxd4 {[%clk 0:00:03]} 41. cxd4 {[%clk 0:00:07]}  e3 {[%clk 0:00:04]} 42. Nd3 {[%clk 0:00:05]}  g5 {[%clk 0:00:03]} 43. Ne1 {[%clk 0:00:04]}  Bg6+ {[%clk 0:00:03]} 44. Kd1 {[%clk 0:00:04]}  gxf4 {[%clk 0:00:04]} 45. gxf4 {[%clk 0:00:04]}  Kc6 {[%clk 0:00:04]} 46. Ke2 {[%clk 0:00:04]}  Ra4 {[%clk 0:00:04]} 47. Kxe3 {[%clk 0:00:04]}  Ra3+ {[%clk 0:00:04]} 48. Ke2 {[%clk 0:00:05]}  Be4 {[%clk 0:00:05]} 49. Nc2 {[%clk 0:00:04]}  Rh3 {[%clk 0:00:05]} 50. Kd2 {[%clk 0:00:02]}  Rxh2+ {[%clk 0:00:05]} 51. Kc3 {[%clk 0:00:03]}  Rh3+ {[%clk 0:00:06]} 52. Kb4 {[%clk 0:00:03]}  Kd6 {[%clk 0:00:05]} 53. Na3 {[%clk 0:00:03]}  Rd3 {[%clk 0:00:05]} 54. Nxb5+ {[%clk 0:00:04]}  Kc6 {[%clk 0:00:05]} 55. a4 {[%clk 0:00:05]}  h5 {[%clk 0:00:04]} 56. Rc2+ {[%clk 0:00:05]}  Kb7 {[%clk 0:00:03]} 57. Rh2 {[%clk 0:00:06]}  Rd1 {[%clk 0:00:03]} 58. Rxh5 {[%clk 0:00:06]}  Rb1+ {[%clk 0:00:03]} 59. Kc5 {[%clk 0:00:06]}  Rc1+ {[%clk 0:00:04]} 60. Kd6 {[%clk 0:00:06]}  Kb6 {[%clk 0:00:05]} 61. Rxd5 {[%clk 0:00:05]}  Bxd5 {[%clk 0:00:05]} 62. Kxd5 {[%clk 0:00:06]}  Ra1 {[%clk 0:00:04]} 63. f5 {[%clk 0:00:06]}  Rxa4 {[%clk 0:00:04]} 64. Nd6 {[%clk 0:00:07]}  Ra8 {[%clk 0:00:05]} 65. Ke6 {[%clk 0:00:06]}  Kc7 {[%clk 0:00:06]} 66. f6 {[%clk 0:00:06]}  Ra6 {[%clk 0:00:06]} 67. f7 {[%clk 0:00:05]}  Rxd6+ {[%clk 0:00:07]} 68. Ke7 {[%clk 0:00:05]}  Rd7+ {[%clk 0:00:07]} 69. Ke8 {[%clk 0:00:06]}  Rd8+ {[%clk 0:00:08]} 70. Ke7 {[%clk 0:00:06]}  Rd7+ {[%clk 0:00:08]} 71. Ke8 {[%clk 0:00:06]}  Rd8+ {[%clk 0:00:09]} 72. Ke7 {[%clk 0:00:07]}  Rd7+ {[%clk 0:00:10]} 1/2-1/2


[Site "https://www.chess.com"]

[Event "Titled Tuesday Blitz November 07 Late 2023"]
[White "ChessBrainiacOnTwitch"]
[Black "Ziatdinov, Raset"]
[BlackFideId "2015323"]
[WhiteElo "2784"]
[BlackElo "2522"]
[Result "0-1"]
[Round "7"]
[TimeControl "180+1"]
[Date "2023.11.07"]
[WhiteClock "0:00:00"]
[BlackClock "0:01:08"]
[Board "47"]

1. e4 {[%clk 0:03:00]}  e5 {[%clk 0:02:59]} 2. Nf3 {[%clk 0:03:01]}  Nc6 {[%clk 0:02:58]} 3. Bc4 {[%clk 0:03:01]}  Bc5 {[%clk 0:02:57]} 4. c3 {[%clk 0:03:01]}  Nf6 {[%clk 0:02:56]} 5. d3 {[%clk 0:03:01]}  d6 {[%clk 0:02:48]} 6. O-O {[%clk 0:03:02]}  Bb6 {[%clk 0:02:43]} 7. a4 {[%clk 0:02:59]}  a6 {[%clk 0:02:38]} 8. Nbd2 {[%clk 0:02:58]}  O-O {[%clk 0:02:33]} 9. h3 {[%clk 0:02:52]}  Be6 {[%clk 0:02:31]} 10. Bxe6 {[%clk 0:02:51]}  fxe6 {[%clk 0:02:30]} 11. b4 {[%clk 0:02:52]}  h6 {[%clk 0:02:26]} 12. Nc4 {[%clk 0:02:49]}  Ba7 {[%clk 0:02:24]} 13. Re1 {[%clk 0:02:40]}  Qd7 {[%clk 0:02:18]} 14. Ra2 {[%clk 0:02:34]}  Rf7 {[%clk 0:02:15]} 15. b5 {[%clk 0:02:31]}  Ne7 {[%clk 0:02:10]} 16. bxa6 {[%clk 0:02:22]}  bxa6 {[%clk 0:02:09]} 17. d4 {[%clk 0:02:12]}  exd4 {[%clk 0:02:06]} 18. cxd4 {[%clk 0:02:13]}  Raf8 {[%clk 0:02:05]} 19. Kh2 {[%clk 0:01:42]}  Ng6 {[%clk 0:02:06]} 20. e5 {[%clk 0:01:34]}  Nh5 {[%clk 0:02:06]} 21. d5 {[%clk 0:01:19]}  Rxf3 {[%clk 0:02:07]} 22. gxf3 {[%clk 0:01:13]}  Nhf4 {[%clk 0:01:57]} 23. Bxf4 {[%clk 0:01:09]}  Nxf4 {[%clk 0:01:54]} 24. Rg1 {[%clk 0:00:43]}  exd5 {[%clk 0:01:50]} 25. Rg4 {[%clk 0:00:25]}  dxc4 {[%clk 0:01:48]} 26. exd6 {[%clk 0:00:25]}  cxd6 {[%clk 0:01:46]} 27. Qg1 {[%clk 0:00:18]}  h5 {[%clk 0:01:42]} 28. Rg3 {[%clk 0:00:16]}  d5 {[%clk 0:01:37]} 29. Rd2 {[%clk 0:00:15]}  Bb8 {[%clk 0:01:35]} 30. Kh1 {[%clk 0:00:15]}  Kh8 {[%clk 0:01:32]} 31. Rd1 {[%clk 0:00:13]}  Nd3 {[%clk 0:01:30]} 32. Qf1 {[%clk 0:00:09]}  Bxg3 {[%clk 0:01:28]} 33. fxg3 {[%clk 0:00:10]}  Qf5 {[%clk 0:01:26]} 34. Kg2 {[%clk 0:00:10]}  Re8 {[%clk 0:01:24]} 35. Rd2 {[%clk 0:00:09]}  Re3 {[%clk 0:01:23]} 36. Re2 {[%clk 0:00:04]}  Qe5 {[%clk 0:01:22]} 37. Rxe3 {[%clk 0:00:03]}  Qxe3 {[%clk 0:01:21]} 38. h4 {[%clk 0:00:04]}  c3 {[%clk 0:01:21]} 39. Qb1 {[%clk 0:00:03]}  Qe2+ {[%clk 0:01:18]} 40. Kh3 {[%clk 0:00:04]}  Qe6+ {[%clk 0:01:17]} 41. Kg2 {[%clk 0:00:03]}  Qe2+ {[%clk 0:01:09]} 42. Kh3 {[%clk 0:00:04]}  c2 {[%clk 0:01:09]} 43. Qb8+ {[%clk 0:00:03]}  Kh7 {[%clk 0:01:09]} 44. Qe8 {[%clk 0:00:00]}  Qxe8 {[%clk 0:01:08]} 0-1


[Site "https://www.chess.com"]